fUST/lending_fUST_20260128
["ID","MTS","AMOUNT","RATE_DAILY","PERIOD"]
[403857282,1769604639403,-1650.89,0.00014451,2]
[403857283,1769604639412,-1650.89,0.00014451,2]
[403857284,1769604639421,-1650.89,0.00014451,2]
[403857285,1769604639430,-1650.89,0.00014451,2]
[403857286,1769604639438,-1650.89,0.00014451,2]
[403857287,1769604639447,-1650.89,0.00014451,2]
[403857288,1769604639457,-1650.89,0.00014451,2]
[403857289,1769604639465,-1650.89,0.00014451,2]
[403857290,1769604639474,-1650.89,0.00014451,2]
[403857291,1769604639483,-1650.89,0.00014451,2]
[403857292,1769604639492,-1650.89,0.00014451,2]
[403857293,1769604639501,-1650.89,0.00014451,2]
[403857294,1769604639510,-1650.89,0.00014451,2]
[403857295,1769604639519,-1650.89,0.00014451,2]
[403857296,1769604639527,-1650.89,0.00014451,2]
[403857297,1769604639536,-1650.89,0.00014451,2]
[403857298,1769604639545,-1650.89,0.00014451,2]
[403857299,1769604639555,-1650.89,0.00014451,2]
[403857300,1769604639563,-1650.89,0.00014451,2]
[403857301,1769604639572,-1650.89,0.00014451,2]
[403857302,1769604639581,-1650.89,0.00014451,2]
[403857303,1769604639590,-2986.03,0.00014451,2]
[403857304,1769604639603,-374.21,0.000145,2]
[403857305,1769604639612,-420.0,0.00014551,2]
[403857306,1769604639622,-900.0,0.00014768,2]
[403857307,1769604639631,-1512.54102297,0.00014795,2]
[403857308,1769604639640,-374.21,0.000149,2]
[403857309,1769604639650,-2000.0,0.00014916,2]
[403857310,1769604639659,-1500.0,0.00014916,2]
[403857311,1769604639669,-2000.0,0.00014916,2]
[403857312,1769604639678,-2000.0,0.00014916,2]
[403857313,1769604639687,-2000.0,0.00014916,2]
[403857314,1769604639697,-2747.6971852,0.00014968,2]
[403857315,1769604639706,-347.9562391,0.00014968,2]
[403857316,1769604639715,-374.21,0.000153,2]
[403857317,1769604639725,-303.02799168,0.00015316,2]
[403857318,1769604639735,-500.0,0.00015399,2]
[403857319,1769604639744,-160608.39003872,0.000154,2]
[403857320,1769604639755,-493.93468345,0.000154,2]
[403857321,1769604639766,-2500.0,0.00015464,2]
[403857322,1769604639775,-1006.71511543,0.00015464,2]
[403857323,1769604639786,-2500.0,0.00015464,2]
[403857324,1769604639795,-250.0,0.0001568,2]
[403857325,1769604639807,-159.53,0.000158,2]
[403857326,1769604639817,-374.21,0.000158,2]
[403857327,1769604639826,-156.08,0.000158,2]
[403857328,1769604639838,-720.0,0.00015815,2]
[403857329,1769604639848,-587.0,0.00015953,2]
[403857330,1769604639858,-3000.0,0.00016012,2]
[403857331,1769604639867,-3007.06964924,0.00016012,2]
[403857332,1769604639877,-159.53,0.000162,2]
[403857333,1769604639886,-374.21,0.000162,2]
[403857334,1769604639895,-160.0,0.00016433,2]
[403857336,1769604639905,-200.0,0.00016438,2]
[403857337,1769604639914,-500.0,0.00016438,2]
[403857338,1769604639924,-236.8989366,0.00016438,2]
[403857339,1769604639933,-2747.6971852,0.00016484,2]
[403857340,1769604639945,-404.65778398,0.0001656,2]
[403857341,1769604639954,-159.53,0.000166,2]
[403857342,1769604639964,-374.21,0.000166,2]
[403857343,1769604639973,-6908.32234082,0.00016668,2]
[403857344,1769604639982,-347.9562391,0.00016741,2]
[403857345,1769604639992,-159.53,0.00017,2]
[403857346,1769604640001,-374.21,0.00017,2]
[403857347,1769604640012,-156.08,0.000172,2]
[403857348,1769604640021,-8071.28709371,0.00017203,2]
[403857349,1769604640030,-864.0,0.00017396,2]
[403857350,1769604640040,-159.53,0.000174,2]
[403857351,1769604640050,-374.21,0.000174,2]
[403857352,1769604640059,-559.30839155,0.000174,2]
[403857354,1769604640069,-1041.66666667,0.00017502,2]
[403857355,1769604640080,-160.0,0.00017502,2]
[403857356,1769604640089,-720.30664514,0.000176,2]
[403857357,1769604640098,-159.53,0.000178,2]
[403857358,1769604640108,-374.21,0.000178,2]
[403857359,1769604640118,-126062.66862741,0.00018,2]
[403857360,1769604640127,-2747.6971852,0.00018001,2]
[403857361,1769604640136,-630.0,0.00018047,2]
[403857362,1769604640146,-1369.0,0.00018047,2]
[403857363,1769604640155,-2150.0,0.00018047,2]
[403857364,1769604640164,-150.0,0.00018047,2]
[403857365,1769604640174,-68491.25609635,0.00018082,3]
[403857366,1769604640184,-159.53,0.000182,2]
[403857367,1769604640193,-374.21,0.000182,2]
[403857368,1769604640202,-9548.19578351,0.000183,3]
[403857369,1769604640212,-279.65253593,0.00018301,3]
[403857370,1769604640221,-347.9562391,0.00018514,2]
[403857371,1769604640230,-159.53,0.000186,2]
[403857372,1769604640240,-374.21,0.000186,2]
[403857373,1769604640250,-156.08,0.000186,2]
[403857374,1769604640260,-303.10001603,0.000189,2]
[403857375,1769604640269,-6908.32234082,0.00018937,2]
[403857376,1769604640279,-69497.33252454,0.00019,2]
[403857378,1769604640288,-159.53,0.00019,2]
[403857379,1769604640298,-374.21,0.00019,2]
[403857380,1769604640307,-303.10001603,0.00019089,2]
[403857381,1769604640316,-1000.0,0.00019136,2]
[403857382,1769604640325,-508.0614,0.00019178,2]
[403857383,1769604640334,-200.0,0.00019178,2]
[403857384,1769604640343,-508.0614,0.00019178,2]
[403857385,1769604640352,-508.0614,0.00019178,2]
[403857387,1769604640362,-508.0614,0.00019178,2]
[403857389,1769604640371,-508.0614,0.00019178,2]
[403857390,1769604640380,-172.01,0.000192,2]
[403857391,1769604640389,-260.27,0.000192,2]
[403857392,1769604640398,-3905.3154082,0.000192,2]
[403857767,1769604644776,-380.43643824,0.00013699,2]
[403857768,1769604644786,-500.0,0.00014005,2]
[403857769,1769604644795,-500.0,0.00014005,2]
[403857770,1769604644806,-500.0,0.00014005,2]
[403857771,1769604644815,-500.0,0.00014005,2]
[403857772,1769604644824,-500.0,0.00014005,2]
[403857773,1769604644833,-500.0,0.00014005,2]
[403857774,1769604644845,-558.44283264,0.00014005,2]
[403857775,1769604644854,-500.0,0.00014005,2]
[403857776,1769604644863,-500.0,0.00014005,2]
[403857777,1769604644872,-500.0,0.00014005,2]
[403857778,1769604644880,-500.0,0.00014005,2]
[403857779,1769604644889,-335.86906018,0.00014005,2]
[403857780,1769604644898,-448.91499712,0.00015699,2]
[403857781,1769604644907,-517.39355601,0.00017699,2]
[403857782,1769604644916,-777.8045918,0.000192,2]
[403857783,1769604644925,-303.10001603,0.00019278,2]
[403857784,1769604644934,-990.372128,0.00019459,2]
[403857785,1769604644943,-298.49895743,0.00019467,2]
[403857786,1769604644952,-159.53,0.000195,2]
[403857788,1769604645136,-374.21,0.000195,2]
[403857789,1769604645146,-2747.6971852,0.00019517,2]
[403857790,1769604645156,-508.0614,0.00019589,3]
[403857791,1769604645165,-508.0614,0.00019589,3]
[403857792,1769604645174,-508.0614,0.00019589,3]
[403857793,1769604645183,-585.87211489,0.00019699,2]
[403857794,1769604645192,-6867.55034768,0.000197,3]
[403857796,1769604645203,-621.0,0.000197,3]
[403857958,1769604646760,-533.27891631,0.00014451,2]
[403858898,1769604685859,-398.73499168,0.00010963,2]
[403858967,1769605016259,1000.0,0.00034857,120]
[403858976,1769605152616,-341.15158567,0.00013206,2]
[403858977,1769605152645,-1200.0,0.00013272,2]
[403858978,1769605152675,-500.0,0.00013273,2]
[403858979,1769605152704,-500.0,0.00013273,2]
[403858980,1769605152733,-500.0,0.00013273,2]
[403858981,1769605152762,-500.0,0.00013273,2]
[403858982,1769605152791,-300.0,0.00013598,2]
[403858983,1769605158733,-1791.03020472,0.00013599,2]
[403858984,1769605158817,-2650.04907916,0.00013599,2]
[403858987,1769605205587,188.34,0.0001,2]
[403858988,1769605206133,188.34,0.000104,2]
[403858989,1769605206806,188.34,0.000108,2]
[403859009,1769605401331,3426.35677952,0.0001,10]
[403859011,1769605464242,572.71456598,0.00010904,2]
[403859092,1769605757671,-577.0,0.00011144,2]
[403859093,1769605757694,-267.76819499,0.00011172,2]
[403859116,1769605787690,-450.12939607,0.0001106,2]
[403859126,1769605791594,-1.15813697,0.0001106,2]
[403859127,1769605791616,-66.56035897,0.00011172,2]
[403859128,1769605791640,-159.54015202,0.000112,2]
[403859129,1769605802915,-189.66575282,0.00011088,2]
[403859130,1769605805325,161.41,0.0001,2]
[403859131,1769605805784,-287.84535645,0.00011088,2]
[403859163,1769605837908,-199.87693476,0.00011088,2]
[403859164,1769605837918,-28.79984798,0.000112,2]
[403859166,1769605837930,-188.34,0.000116,2]
[403859168,1769605837940,-188.34,0.000121,2]
[403859169,1769605837952,-188.34,0.000125,2]
[403859170,1769605837963,-188.34,0.000129,2]
[403859171,1769605837972,-394.50769367,0.00013172,2]
[403859172,1769605837982,-300.0,0.00013272,2]
[403859173,1769605837991,-500.0,0.00013273,2]
[403859174,1769605838000,-500.0,0.00013273,2]
[403859175,1769605838010,-500.0,0.00013273,2]
[403859176,1769605838020,-500.0,0.00013273,2]
[403859177,1769605838029,-500.0,0.00013273,2]
[403859178,1769605838039,-500.0,0.00013273,2]
[403859179,1769605838049,-188.34,0.000133,2]
[403859180,1769605838059,-161.41,0.000134,2]
[403859181,1769605838073,-300.0,0.00013673,2]
[403859182,1769605838083,-495.186064,0.00013699,2]
[403859183,1769605838093,-500.0,0.00013699,2]
[403859184,1769605838103,-500.0,0.00013699,2]
[403859185,1769605838113,-500.0,0.00013699,2]
[403859186,1769605838123,-626.86038304,0.00013699,2]
[403859187,1769605838133,-300.0,0.00013699,2]
[403859188,1769605838143,-159.31465189,0.00013699,2]
[403859189,1769605838154,-509.85507396,0.00013699,2]
[403859190,1769605838165,-500.0,0.00013699,2]
[403859191,1769605838175,-500.0,0.00013699,2]
[403859192,1769605838184,-188.34,0.000137,2]
[403859193,1769605838200,-151.0,0.000138,2]
[403859194,1769605838210,-307.34418455,0.00013806,2]
[403859195,1769605838219,-500.0,0.00013819,2]
[403859196,1769605838229,-500.0,0.0001382,2]
[403859197,1769605838239,-500.0,0.0001382,2]
[403859198,1769605838249,-500.0,0.0001382,2]
[403859199,1769605838258,-500.0,0.0001382,2]
[403859200,1769605838268,-500.0,0.0001382,2]
[403859201,1769605838278,-500.0,0.0001382,2]
[403859202,1769605838288,-500.0,0.0001382,2]
[403859203,1769605838297,-500.0,0.0001382,2]
[403859204,1769605838306,-546.57663875,0.0001382,2]
[403859205,1769605838319,-500.0,0.0001382,2]
[403859206,1769605838328,-500.0,0.0001382,2]
[403859207,1769605838348,-500.0,0.0001382,2]
[403859208,1769605838360,-500.0,0.0001382,2]
[403859209,1769605838370,-500.0,0.0001382,2]
[403859210,1769605838381,-502.62860233,0.0001382,2]
[403859211,1769605838393,-500.0,0.0001382,2]
[403859212,1769605838403,-500.0,0.0001382,2]
[403859213,1769605838413,-500.0,0.0001382,2]
[403859214,1769605838423,-500.0,0.0001382,2]
[403859215,1769605838433,-500.0,0.0001382,2]
[403859216,1769605838443,-500.0,0.0001382,2]
[403859217,1769605838454,-500.0,0.0001382,2]
[403859218,1769605838464,-500.0,0.0001382,2]
[403859219,1769605838474,-500.0,0.0001382,2]
[403859220,1769605838484,-500.0,0.0001382,2]
[403859221,1769605838494,-500.0,0.0001382,2]
[403859222,1769605838503,-500.0,0.0001382,2]
[403859223,1769605838514,-500.0,0.0001382,2]
[403859224,1769605838524,-500.0,0.0001382,2]
[403859225,1769605838534,-500.0,0.0001382,2]
[403859226,1769605838544,-500.0,0.0001382,2]
[403859227,1769605838554,-500.0,0.0001382,2]
[403859228,1769605838564,-500.0,0.0001382,2]
[403859229,1769605838575,-548.69562237,0.0001382,2]
[403859230,1769605838585,-500.0,0.0001382,2]
[403859231,1769605838595,-500.0,0.0001382,2]
[403859232,1769605838605,-500.0,0.0001382,2]
[403859233,1769605838615,-500.0,0.0001382,2]
[403859235,1769605838625,-500.0,0.0001382,2]
[403859237,1769605838635,-500.0,0.0001382,2]
[403859238,1769605838646,-500.0,0.0001382,2]
[403859240,1769605838657,-500.0,0.0001382,2]
[403859242,1769605838668,-500.0,0.0001382,2]
[403859243,1769605838679,-500.0,0.0001382,2]
[403859244,1769605838690,-500.0,0.0001382,2]
[403859246,1769605838700,-500.0,0.0001382,2]
[403859248,1769605838711,-500.0,0.0001382,2]
[403859250,1769605838722,-500.0,0.0001382,2]
[403859252,1769605838733,-500.0,0.0001382,2]
[403859254,1769605838744,-500.0,0.0001382,2]
[403859255,1769605838754,-1000.0,0.00013821,2]
[403859257,1769605838764,-1000.0,0.00013821,2]
[403859259,1769605838775,-1000.0,0.00013821,2]
[403859260,1769605838785,-1000.0,0.00013821,2]
[403859262,1769605838795,-1000.0,0.00013821,2]
[403859264,1769605838806,-1518.82,0.00013906,2]
[403859266,1769605838818,-1518.82,0.00013906,2]
[403859267,1769605838829,-1518.82,0.00013906,2]
[403859268,1769605838840,-1518.82,0.00013906,2]
[403859269,1769605838850,-1518.82,0.00013906,2]
[403859270,1769605838860,-1518.82,0.00013906,2]
[403859271,1769605838871,-1518.82,0.00013906,2]
[403859272,1769605838881,-1518.82,0.00013906,2]
[403859273,1769605838892,-1518.82,0.00013906,2]
[403859274,1769605838902,-1518.82,0.00013906,2]
[403859275,1769605838911,-1518.82,0.00013906,2]
[403859276,1769605838921,-1518.82,0.00013906,2]
[403859277,1769605838931,-1518.82,0.00013906,2]
[403859278,1769605838941,-1518.82,0.00013906,2]
[403859279,1769605838951,-1518.82,0.00013906,2]
[403859280,1769605838961,-1518.82,0.00013906,2]
[403859281,1769605838971,-1518.82,0.00013906,2]
[403859282,1769605838982,-1518.82,0.00013906,2]
[403859283,1769605838992,-1518.82,0.00013906,2]
[403859284,1769605839001,-1518.82,0.00013906,2]
[403859285,1769605839011,-1518.82,0.00013906,2]
[403859286,1769605839021,-1518.82,0.00013906,2]
[403859287,1769605839032,-1518.82,0.00013906,2]
[403859288,1769605839042,-1518.82,0.00013906,2]
[403859289,1769605839051,-1518.82,0.00013906,2]
[403859290,1769605839062,-1518.82,0.00013906,2]
[403859291,1769605839077,-1518.82,0.00013906,2]
[403859292,1769605839087,-1518.82,0.00013906,2]
[403859293,1769605839096,-1518.82,0.00013906,2]
[403859294,1769605839107,-1518.82,0.00013906,2]
[403859295,1769605839117,-1518.82,0.00013906,2]
[403859296,1769605839127,-1518.82,0.00013906,2]
[403859297,1769605839138,-1518.82,0.00013906,2]
[403859298,1769605839148,-1518.82,0.00013906,2]
[403859299,1769605839159,-1518.82,0.00013906,2]
[403859300,1769605839170,-1518.82,0.00013906,2]
[403859301,1769605839181,-2201.52,0.00013906,2]
[403859302,1769605839196,-487.0,0.00013906,2]
[403859303,1769605839209,-487.0,0.00013906,2]
[403859304,1769605839219,-487.0,0.00013906,2]
[403859305,1769605839231,-487.0,0.00013906,2]
[403859306,1769605839242,-487.0,0.00013906,2]
[403859307,1769605839252,-487.0,0.00013906,2]
[403859308,1769605839262,-487.0,0.00013906,2]
[403859309,1769605839272,-487.0,0.00013906,2]
[403859310,1769605839284,-487.0,0.00013906,2]
[403859311,1769605839294,-487.0,0.00013906,2]
[403859312,1769605839304,-679.4,0.00013906,2]
[403859313,1769605839314,-150.0,0.00013958,2]
[403859314,1769605839330,-150.0,0.00013958,2]
[403859315,1769605839341,-253.92909004,0.00013958,2]
[403859316,1769605839350,-150.60770649,0.00013958,2]
[403859317,1769605839360,-150.21390958,0.00013958,2]
[403859318,1769605839370,-150.0,0.00013958,2]
[403859319,1769605839380,-150.0,0.00013958,2]
[403859320,1769605839391,-2017.13927541,0.00013998,2]
[403859321,1769605839401,-2736.94264847,0.00014,2]
[403859322,1769605839410,-500.0,0.00014005,2]
[403859323,1769605839420,-500.0,0.00014005,2]
[403859324,1769605839429,-500.0,0.00014005,2]
[403859325,1769605839439,-500.0,0.00014005,2]
[403859326,1769605839449,-500.0,0.00014005,2]
[403859327,1769605839459,-500.0,0.00014005,2]
[403859328,1769605839468,-500.0,0.00014005,2]
[403859329,1769605839478,-500.0,0.00014005,2]
[403859330,1769605839488,-500.0,0.00014005,2]
[403859331,1769605839497,-500.0,0.00014005,2]
[403859333,1769605839507,-500.0,0.00014005,2]
[403859334,1769605839516,-500.0,0.00014005,2]
[403859335,1769605839526,-500.0,0.00014005,2]
[403859336,1769605839536,-500.0,0.00014005,2]
[403859337,1769605839547,-500.0,0.00014005,2]
[403859338,1769605839556,-500.0,0.00014005,2]
[403859340,1769605839571,-500.0,0.00014005,2]
[403859342,1769605839581,-500.0,0.00014005,2]
[403859343,1769605839590,-500.0,0.00014005,2]
[403859344,1769605839599,-500.0,0.00014005,2]
[403859345,1769605839608,-500.0,0.00014005,2]
[403859347,1769605839618,-317.89853572,0.00014005,2]
[403859349,1769605839627,-500.0,0.00014005,2]
[403859351,1769605839636,-500.0,0.00014005,2]
[403859352,1769605839645,-600.0,0.00014005,2]
[403859353,1769605839655,-500.0,0.00014005,2]
[403859354,1769605839664,-284.09492282,0.00014005,2]
[403859355,1769605839673,-150.0,0.00014095,2]
[403859357,1769605839683,-188.34,0.000141,2]
[403859359,1769605839692,-600.0,0.00014221,2]
[403859361,1769605839701,-200.9171616,0.00014232,2]
[403859363,1769605839711,-200.0,0.00014232,2]
[403859365,1769605839720,-696.49020811,0.00014247,2]
[403859367,1769605839730,-1000.0,0.00014247,2]
[403859369,1769605839740,-1000.0,0.00014247,2]
[403859371,1769605839749,-634.23032778,0.00014247,2]
[403859373,1769605839758,-1012.54102297,0.00014247,2]
[403859375,1769605839768,-1500.0,0.00014368,2]
[403859377,1769605839777,-1006.71511543,0.00014368,2]
[403859378,1769605839787,-213.24821694,0.00014369,2]
[403859380,1769605839796,-151.0,0.000144,2]
[403859382,1769605839805,-500.0,0.0001445,2]
[403859384,1769605839815,-188.34,0.000145,2]
[403859386,1769605839827,-420.0,0.00014551,2]
[403859388,1769605839837,-300.0,0.00014739,2]
[403859390,1769605839847,-300.0,0.00014739,2]
[403859392,1769605839857,-300.0,0.00014739,2]
[403859394,1769605839867,-300.0,0.00014739,2]
[403859396,1769605839876,-300.0,0.00014739,2]
[403859398,1769605839885,-300.0,0.00014739,2]
[403859401,1769605839899,-300.0,0.00014739,2]
[403859402,1769605839908,-300.0,0.00014739,2]
[403859405,1769605839919,-300.0,0.00014739,2]
[403859407,1769605839929,-300.0,0.00014739,2]
[403859409,1769605839939,-300.0,0.00014739,2]
[403859410,1769605839949,-300.0,0.00014739,2]
[403859413,1769605839959,-300.0,0.00014739,2]
[403859414,1769605839969,-300.0,0.00014739,2]
[403859416,1769605839979,-300.0,0.00014739,2]
[403859418,1769605839988,-600.0,0.00014739,2]
[403859420,1769605839998,-303.02799168,0.00014768,2]
[403859422,1769605840008,-502.75778254,0.00014795,2]
[403859425,1769605840018,-153.26549201,0.00014795,2]
[403859427,1769605840027,-250.0,0.00014896,2]
[403859428,1769605840036,-188.34,0.000149,2]
[403859430,1769605840046,-2000.0,0.00014916,2]
[403859432,1769605840056,-151.0,0.000151,2]
[403859435,1769605840067,-454.68683339,0.00015172,2]
[403859436,1769605840077,-188.34,0.000153,2]
[403859438,1769605840086,-307.34418452,0.00015305,2]
[403859440,1769605840096,-2404.65778398,0.00015464,2]
[403859442,1769605840105,-151.0,0.000157,2]
[403859444,1769605840115,-188.34,0.000158,2]
[403859446,1769605840124,-188.34,0.000162,2]
[403859448,1769605840134,-720.0,0.00016213,2]
[403859451,1769605840145,-151.0,0.000163,2]
[403859453,1769605840155,-160.0,0.00016329,2]
[403859455,1769605840164,-160.0,0.00016329,2]
[403859457,1769605840177,-1041.66666667,0.00016329,2]
[403859459,1769605840187,-188.34,0.000166,2]
[403859461,1769605840200,-307.34418452,0.00016803,2]
[403859463,1769605840210,-151.0,0.000169,2]
[403859464,1769605840219,-188.34,0.00017,2]
[403859466,1769605840228,-514.8659731,0.00017172,2]
[403859469,1769605840238,-188.34,0.000174,2]
[403859471,1769605840247,-151.0,0.000175,2]
[403859472,1769605840256,-188.34,0.000178,2]
[403859474,1769605840267,-864.0,0.00017834,2]
[403859476,1769605840277,-151.0,0.000181,2]
[403859478,1769605840286,-151.0,0.000181,2]
[403859480,1769605840296,-188.34,0.000182,2]
[403859482,1769605840306,-2150.0,0.00018259,2]
[403859484,1769605840317,-1369.0,0.00018259,2]
[403859486,1769605840327,-630.0,0.00018259,2]
[403859488,1769605840337,-279.65253593,0.00018301,3]
[403859490,1769605840346,-307.34418452,0.00018302,2]
[403859492,1769605840356,-188.34,0.000186,2]
[403859494,1769605840366,-779.0,0.000187,2]
[403859497,1769605840375,-6475.7482819,0.00018731,2]
[403859498,1769605840385,-1043.8687176,0.00018731,2]
[403859500,1769605840395,-151.0,0.000188,2]
[403859501,1769605840405,-151.0,0.000188,2]
[403859502,1769605840415,-100000.0,0.0001899,2]
[403859503,1769605840424,-188.34,0.00019,2]
[403859504,1769605840433,-575.04511281,0.00019172,2]
[403859505,1769605840443,-151.0,0.000194,2]
[403859506,1769605840452,-151.0,0.000194,2]
[403859507,1769605840462,-188.34,0.000195,2]
[403859508,1769605840472,-1000.0,0.00019618,2]
[403859509,1769605840481,-172.01,0.000197,2]
[403859510,1769605840491,-260.27,0.000197,2]
[403859511,1769605840500,-152324.30574867,0.000197,3]
[403859512,1769605840509,-7653.84488476,0.00019737,2]
[403859513,1769605840519,-307.34418452,0.000198,2]
[403859514,1769605840528,-159.53,0.000199,2]
[403859515,1769605840537,-374.21,0.000199,2]
[403859516,1769605840546,-188.34,0.000199,2]
[403859517,1769605840556,-6217.49010681,0.000199,2]
[403859518,1769605840565,-145710.33249309,0.0002,2]
[403859519,1769605840705,-572.71456598,0.0002,2]
[403859852,1769605843964,-477.51110927,0.00013818,2]
[403859854,1769605843974,-152.70966246,0.00013958,2]
[403859856,1769605843983,-150.0,0.00013958,2]
[403859858,1769605843993,-150.0,0.00014095,2]
[403859860,1769605844002,-250.0,0.00014643,2]
[403859862,1769605844011,-716.0,0.00018299,2]
[403859864,1769605844021,-18193.50982388,0.0002,2]
[403859883,1769605844185,-1139.14332103,0.0002,2]
[403859885,1769605844200,-301.03584313,0.0002,2]
[403860071,1769605846240,-2415.94544576,0.0002,2]
[403860836,1769605921974,241.07842067,0.00034881,120]
[403860905,1769606320072,999.34,0.00030136,120]
[403860906,1769606323460,4607.07315556,0.00034887,120]
[403860974,1769606405422,152.98,0.0001,2]
[403860975,1769606406179,152.98,0.000108,2]
[403860993,1769606569498,-152.98,0.000116,2]
[403860994,1769606569521,-167.14409012,0.00012,2]
[403860995,1769606582720,-320.12409012,0.0001188,2]
[403860996,1769606582742,-187.49947864,0.00012,2]
[403860997,1769606582763,-5.02731626,0.000124,2]
[403861142,1769606612742,-170.28303046,0.00012276,2]
[403861143,1769606621165,-256.42888323,0.00012276,2]
[403861175,1769606731242,6900.2,0.0003,120]
[403861183,1769606792863,-299.99138962,0.00012153,2]
[403861184,1769606799567,-152.31562534,0.00012153,2]
[403861188,1769606867736,-60.34387006,0.00012153,2]
[403861189,1769606867928,-147.95268374,0.000124,2]
[403861190,1769606867952,-152.98,0.000132,2]
[403861191,1769606867974,-74.12268118,0.00013273,2]
[403861253,1769607031864,-887.70624994,0.0001314,2]
[403861254,1769607031874,-606.0,0.0001314,2]
[403861255,1769607031884,-347.55069738,0.00013206,2]
[403861256,1769607031894,-500.0,0.00013273,2]
[403861257,1769607031903,-500.0,0.00013273,2]
[403861258,1769607031913,-500.0,0.00013273,2]
[403861259,1769607031922,-1200.0,0.0001349,2]
[403861260,1769607031932,-3207.55663648,0.00013491,2]
[403861261,1769607031941,-300.0,0.00013616,2]
[403861262,1769607031951,-300.0,0.00013616,2]
[403861263,1769607031961,-300.0,0.00013616,2]
[403861264,1769607031970,-300.0,0.00013616,2]
[403861265,1769607031980,-825.99585114,0.00013619,2]
[403861266,1769607031989,-303.02799168,0.00013673,2]
[403861267,1769607031999,-153.26549201,0.00013699,2]
[403861268,1769607032008,-502.75778254,0.00013699,2]
[403861269,1769607032018,-500.0,0.00013699,2]
[403861270,1769607032027,-151.0,0.000137,2]
[403861271,1769607032037,-594.91917886,0.00013718,2]
[403861272,1769607032047,-500.0,0.00013718,2]
[403861273,1769607032056,-500.0,0.00013718,2]
[403861274,1769607032065,-500.0,0.00013718,2]
[403861275,1769607032075,-500.0,0.00013718,2]
[403861276,1769607032084,-500.0,0.00013718,2]
[403861277,1769607032093,-500.0,0.00013718,2]
[403861278,1769607032102,-500.0,0.00013718,2]
[403861279,1769607032111,-300.14855773,0.00013718,2]
[403861280,1769607032120,-500.0,0.00013718,2]
[403861281,1769607032129,-500.0,0.00013718,2]
[403861282,1769607032140,-500.0,0.00013718,2]
[403861283,1769607032149,-500.0,0.00013718,2]
[403861284,1769607032158,-500.0,0.00013718,2]
[403861285,1769607032167,-500.0,0.00013718,2]
[403861286,1769607032176,-500.0,0.00013718,2]
[403861287,1769607032185,-500.0,0.00013718,2]
[403861288,1769607032194,-500.0,0.00013718,2]
[403861289,1769607032204,-562.24191968,0.00013718,2]
[403861290,1769607032213,-500.0,0.00013718,2]
[403861291,1769607032222,-500.0,0.00013718,2]
[403861292,1769607032231,-500.0,0.00013718,2]
[403861293,1769607032241,-500.0,0.00013718,2]
[403861294,1769607032250,-500.0,0.00013718,2]
[403861295,1769607032260,-500.0,0.00013718,2]
[403861296,1769607032269,-500.0,0.00013718,2]
[403861297,1769607032278,-500.0,0.00013718,2]
[403861298,1769607032287,-500.0,0.00013718,2]
[403861299,1769607032297,-500.0,0.00013718,2]
[403861300,1769607032306,-500.0,0.00013718,2]